fUST/lending_fUST_20260626
["ID","MTS","AMOUNT","RATE_DAILY","PERIOD"]
[426459842,1782417039000,-500.0,0.00034138,7]
[426459835,1782417039000,-500.0,0.00034138,7]
[426459836,1782417039000,-165.46973025,0.00034138,7]
[426459837,1782417039000,-500.0,0.00034138,7]
[426459840,1782417039000,-500.0,0.00034138,7]
[426459839,1782417039000,-500.0,0.00034138,7]
[426459838,1782417039000,-500.0,0.00034138,7]
[426459841,1782417039000,-487.74597491,0.00034138,7]
[426459843,1782417039000,-500.0,0.00034138,7]
[426459846,1782417039000,-500.0,0.00034138,7]
[426459854,1782417039000,-351.41864556,0.00034138,7]
[426459844,1782417039000,-500.0,0.00034138,7]
[426459859,1782417039000,-542.44526819,0.00034139,2]
[426459845,1782417039000,-500.0,0.00034138,7]
[426459849,1782417039000,-500.0,0.00034138,7]
[426459847,1782417039000,-500.0,0.00034138,7]
[426459850,1782417039000,-500.0,0.00034138,7]
[426459851,1782417039000,-500.0,0.00034138,7]
[426459852,1782417039000,-500.0,0.00034138,7]
[426459853,1782417039000,-500.0,0.00034138,7]
[426459867,1782417039000,-420.11095172,0.00034183,2]
[426459857,1782417039000,-500.0,0.00034138,7]
[426459856,1782417039000,-500.0,0.00034138,7]
[426459858,1782417039000,-500.0,0.00034138,7]
[426459861,1782417039000,-360.20748331,0.00034139,2]
[426459864,1782417039000,-501.5060019,0.00034139,2]
[426459862,1782417039000,-452.47054196,0.00034139,2]
[426459848,1782417039000,-500.0,0.00034138,7]
[426459896,1782417039000,-1003.0120038,0.00035594,2]
[426459901,1782417039000,-500.0,0.00040442,31]
[426459897,1782417039000,-737.91346752,0.00036612,2]
[426459931,1782417039000,-735.64,0.00042394,2]
[426459930,1782417039000,-500.0,0.00042394,120]
[426459941,1782417039000,-151.0,0.000449,13]
[426459932,1782417039000,-263.54,0.00042394,120]
[426459934,1782417039000,-251.104451,0.00042499,30]
[426459933,1782417039000,-500.0,0.00042394,120]
[426459935,1782417039000,-1871.33659,0.000429,120]
[426459936,1782417039000,-174.478521,0.00043102,2]
[426459937,1782417039000,-2213.0,0.000441,2]
[426459938,1782417039000,-445.0,0.000441,2]
[426459939,1782417039000,-151.718,0.000441,2]
[426459940,1782417039000,-208.63932399,0.0004415,2]
[426459942,1782417039000,-151.0,0.000458,23]
[426459944,1782417039000,-499.38238954,0.00046364,6]
[426459946,1782417039000,-1000.0,0.00046575,120]
[426459954,1782417039000,-2049.75963199,0.00048174,2]
[426459952,1782417039000,-480.01068352,0.00047836,2]
[426459951,1782417039000,-174.478521,0.00047638,2]
[426459948,1782417039000,-2213.0,0.000471,2]
[426459949,1782417039000,-445.0,0.000471,2]
[426459947,1782417039000,-151.0,0.000467,25]
[426459950,1782417039000,-151.0,0.000476,26]
[426459955,1782417039000,-1603.28916492,0.00048174,2]
[426459956,1782417039000,-1871.33659,0.000482,120]
[426459958,1782417039000,-151.0,0.000486,24]
[426459957,1782417039000,-151.0,0.000485,25]
[426459959,1782417039000,-5035.61034581,0.000486,116]
[426459925,1782417039000,-633949.4352,0.00040444,30]
[426459927,1782417039000,-423.31242252,0.00041661,2]
[426459943,1782417039000,-712.6445468,0.00046322,2]
[426459922,1782417039000,-904.98657745,0.00040442,31]
[426459926,1782417039000,-901.85015527,0.00040466,2]
[426459905,1782417039000,-904.98657745,0.00040442,31]
[426459898,1782417039000,-1871.33659,0.000376,120]
[426459900,1782417039000,-658.22953154,0.00040366,12]
[426459899,1782417039000,-380.0,0.0003786,2]
[426459904,1782417039000,-904.98657745,0.00040442,31]
[426459903,1782417039000,-432.61204727,0.00040442,31]
[426459902,1782417039000,-904.98657745,0.00040442,31]
[426459907,1782417039000,-904.98657745,0.00040442,31]
[426459914,1782417039000,-904.98657745,0.00040442,31]
[426459912,1782417039000,-904.98657745,0.00040442,31]
[426459916,1782417039000,-904.98657745,0.00040442,31]
[426459911,1782417039000,-904.98657745,0.00040442,31]
[426459908,1782417039000,-904.98657745,0.00040442,31]
[426459894,1782417039000,-157.8376493,0.00035113,19]
[426459906,1782417039000,-904.98657745,0.00040442,31]
[426459920,1782417039000,-904.98657745,0.00040442,31]
[426459910,1782417039000,-904.98657745,0.00040442,31]
[426459921,1782417039000,-904.98657745,0.00040442,31]
[426459924,1782417039000,-504.10736534,0.00040443,30]
[426459923,1782417039000,-1000.0,0.00040443,120]
[426459919,1782417039000,-904.98657745,0.00040442,31]
[426459929,1782417039000,-1311.84616447,0.00042393,2]
[426459918,1782417039000,-904.98657745,0.00040442,31]
[426459917,1782417039000,-904.98657745,0.00040442,31]
[426459909,1782417039000,-904.98657745,0.00040442,31]
[426459915,1782417039000,-904.98657745,0.00040442,31]
[426459913,1782417039000,-904.98657745,0.00040442,31]
[426459928,1782417039000,-214.776587,0.00041761,30]
[426460017,1782417040000,-500.0,0.00048767,120]
[426459998,1782417040000,-500.0,0.00048767,120]
[426460011,1782417040000,-911.0,0.00048767,120]
[426460000,1782417040000,-151.89441419,0.00048767,120]
[426460002,1782417040000,-911.0,0.00048767,120]
[426460004,1782417040000,-911.0,0.00048767,120]
[426460006,1782417040000,-911.0,0.00048767,120]
[426460015,1782417040000,-911.0,0.00048767,120]
[426460023,1782417040000,-911.0,0.00048767,120]
[426460019,1782417040000,-911.0,0.00048767,120]
[426460021,1782417040000,-500.0,0.00048767,120]
[426460026,1782417040000,-911.0,0.00048767,120]
[426460009,1782417040000,-911.0,0.00048767,120]
[426460040,1782417040000,-911.0,0.00048767,120]
[426460028,1782417040000,-500.0,0.00048767,120]
[426460025,1782417040000,-500.0,0.00048767,120]
[426460044,1782417040000,-911.0,0.00048767,120]
[426460013,1782417040000,-911.0,0.00048767,120]
[426459996,1782417040000,-500.0,0.00048767,120]
[426459988,1782417040000,-500.0,0.00048767,120]
[426459992,1782417040000,-357.83907211,0.00048767,120]
[426460042,1782417040000,-500.0,0.00048767,120]
[426459968,1782417040000,-500.0,0.00048767,120]
[426459960,1782417040000,-151.5,0.00048767,32]
[426459970,1782417040000,-500.0,0.00048767,120]
[426459962,1782417040000,-500.0,0.00048767,120]
[426459964,1782417040000,-289.1634487,0.00048767,32]
[426459965,1782417040000,-500.0,0.00048767,120]
[426459963,1782417040000,-151.5,0.00048767,120]
[426460007,1782417040000,-911.0,0.00048767,120]
[426459966,1782417040000,-167.87313498,0.00048767,120]
[426459972,1782417040000,-338.26934704,0.00048767,120]
[426459978,1782417040000,-502.09105619,0.00048767,120]
[426459982,1782417040000,-500.0,0.00048767,120]
[426459980,1782417040000,-500.0,0.00048767,120]
[426459994,1782417040000,-500.0,0.00048767,120]
[426459986,1782417040000,-500.0,0.00048767,120]
[426459990,1782417040000,-500.0,0.00048767,120]
[426459984,1782417040000,-500.0,0.00048767,120]
[426459975,1782417040000,-500.0,0.00048767,120]
[426459961,1782417040000,-151.5,0.00048767,32]
[426460030,1782417040000,-911.0,0.00048767,120]
[426460034,1782417040000,-911.0,0.00048767,120]
[426460086,1782417040000,-252.14610341,0.00048767,120]
[426460091,1782417040000,-151.5,0.00048767,120]
[426460089,1782417040000,-151.5,0.00048767,120]
[426460095,1782417040000,-213.62104263,0.00048767,120]
[426460093,1782417040000,-151.5,0.00048767,120]
[426460097,1782417040000,-735.64,0.00048898,2]
[426460099,1782417040000,-500.0,0.00048899,120]
[426460100,1782417040000,-500.0,0.00048899,2]
[426460079,1782417040000,-151.5,0.00048767,120]
[426460103,1782417040000,-522.4631287,0.00048899,120]
[426460112,1782417040000,-735.64,0.00048999,2]
[426460110,1782417040000,-5000.0,0.000489,70]
[426460106,1782417040000,-537.3,0.00048899,120]
[426460115,1782417040000,-735.64,0.00048999,2]
[426460124,1782417040000,-113513.94746801,0.00049,2]
[426460123,1782417040000,-735.64,0.00048999,2]
[426460117,1782417040000,-735.64,0.00048999,2]
[426460032,1782417040000,-500.0,0.00048767,120]
[426460109,1782417040000,-359.83313177,0.00048899,2]
[426460081,1782417040000,-151.5,0.00048767,120]
[426460104,1782417040000,-500.0,0.00048899,120]
[426460083,1782417040000,-151.5,0.00048767,120]
[426460038,1782417040000,-500.0,0.00048767,120]
[426460077,1782417040000,-160.0,0.00048767,120]
[426460036,1782417040000,-500.0,0.00048767,120]
[426460045,1782417040000,-469.1802215,0.00048767,120]
[426460049,1782417040000,-911.0,0.00048767,120]
[426460053,1782417040000,-500.0,0.00048767,120]
[426460055,1782417040000,-264.17964546,0.00048767,120]
[426460057,1782417040000,-911.0,0.00048767,120]
[426460051,1782417040000,-500.0,0.00048767,120]
[426460047,1782417040000,-911.0,0.00048767,120]
[426460065,1782417040000,-911.0,0.00048767,120]
[426460061,1782417040000,-911.0,0.00048767,120]
[426460063,1782417040000,-911.0,0.00048767,120]
[426460067,1782417040000,-911.0,0.00048767,120]
[426460071,1782417040000,-160.0,0.00048767,120]
[426460069,1782417040000,-920.82110275,0.00048767,120]
[426460085,1782417040000,-151.5,0.00048767,120]
[426460075,1782417040000,-273.5,0.00048767,120]
[426460059,1782417040000,-911.0,0.00048767,120]
[426460073,1782417040000,-151.5,0.00048767,120]
[426460296,1782417041000,-500.0,0.00049315,11]
[426460298,1782417041000,-500.0,0.00049315,90]
[426460288,1782417041000,-500.0,0.00049315,120]
[426460292,1782417041000,-500.0,0.00049315,120]
[426460284,1782417041000,-500.0,0.00049315,120]
[426460282,1782417041000,-500.0,0.00049315,120]
[426460290,1782417041000,-280.74,0.00049315,120]
[426460286,1782417041000,-500.0,0.00049315,120]
[426460274,1782417041000,-500.0,0.00049315,120]
[426460276,1782417041000,-548.51450753,0.00049315,120]
[426460302,1782417041000,-500.0,0.00049315,120]
[426460278,1782417041000,-500.0,0.00049315,120]
[426460300,1782417041000,-500.0,0.00049315,120]
[426460294,1782417041000,-500.0,0.00049315,120]
[426460318,1782417041000,-500.0,0.00049315,120]
[426460308,1782417041000,-500.0,0.00049315,90]
[426460306,1782417041000,-500.0,0.00049315,120]
[426460312,1782417041000,-500.0,0.00049315,120]
[426460310,1782417041000,-500.0,0.00049315,120]
[426460314,1782417041000,-166.68452241,0.00049315,120]
[426460319,1782417041000,-500.0,0.00049315,120]
[426460316,1782417041000,-500.0,0.00049315,120]
[426460321,1782417041000,-500.0,0.00049315,120]
[426460323,1782417041000,-500.0,0.00049315,120]
[426460329,1782417041000,-259.97,0.00049315,120]
[426460325,1782417041000,-500.0,0.00049315,120]
[426460331,1782417041000,-500.0,0.00049315,120]
[426460270,1782417041000,-500.0,0.00049315,120]
[426460304,1782417041000,-500.0,0.00049315,120]
[426460268,1782417041000,-500.0,0.00049315,90]
[426460229,1782417041000,-500.0,0.00049315,120]
[426460327,1782417041000,-500.0,0.00049315,120]
[426460208,1782417041000,-500.0,0.00049315,120]
[426460215,1782417041000,-500.0,0.00049315,120]
[426460206,1782417041000,-500.0,0.00049315,120]
[426460223,1782417041000,-500.0,0.00049315,120]
[426460221,1782417041000,-500.0,0.00049315,120]
[426460217,1782417041000,-500.0,0.00049315,120]
[426460219,1782417041000,-500.0,0.00049315,120]
[426460210,1782417041000,-4233.47,0.00049315,120]
[426460212,1782417041000,-500.0,0.00049315,120]
[426460227,1782417041000,-500.0,0.00049315,120]
[426460225,1782417041000,-500.0,0.00049315,120]
[426460233,1782417041000,-500.0,0.00049315,120]
[426460242,1782417041000,-500.0,0.00049315,120]
[426460272,1782417041000,-500.0,0.00049315,120]
[426460250,1782417041000,-500.0,0.00049315,120]
[426460237,1782417041000,-500.0,0.00049315,120]
[426460231,1782417041000,-500.0,0.00049315,120]
[426460239,1782417041000,-500.0,0.00049315,120]
[426460252,1782417041000,-500.0,0.00049315,120]
[426460244,1782417041000,-500.0,0.00049315,120]
[426460246,1782417041000,-500.0,0.00049315,120]
[426460254,1782417041000,-401.46149858,0.00049315,120]
[426460248,1782417041000,-500.0,0.00049315,120]
[426460256,1782417041000,-500.0,0.00049315,120]
[426460260,1782417041000,-500.0,0.00049315,11]
[426460264,1782417041000,-500.0,0.00049315,90]
[426460258,1782417041000,-500.0,0.00049315,120]
[426460266,1782417041000,-440.95,0.00049315,120]
[426460235,1782417041000,-500.0,0.00049315,120]
[426460333,1782417041000,-500.0,0.00049315,120]
[426460262,1782417041000,-500.0,0.00049315,120]
[426460335,1782417041000,-179.6,0.00049315,120]
[426460405,1782417041000,-500.0,0.00049315,120]
[426460410,1782417041000,-500.0,0.00049315,120]
[426460407,1782417041000,-500.0,0.00049315,120]
[426460414,1782417041000,-500.0,0.00049315,120]
[426460426,1782417041000,-500.0,0.00049315,120]
[426460416,1782417041000,-500.0,0.00049315,120]
[426460422,1782417041000,-303.57502107,0.00049315,120]
[426460412,1782417041000,-500.0,0.00049315,120]
[426460418,1782417041000,-500.0,0.00049315,120]
[426460420,1782417041000,-375.2,0.00049315,120]
[426460433,1782417041000,-10000.0,0.00049315,11]
[426460431,1782417041000,-500.0,0.00049315,120]
[426460424,1782417041000,-500.0,0.00049315,120]
[426460428,1782417041000,-500.0,0.00049315,120]
[426460430,1782417041000,-500.0,0.00049315,120]
[426460435,1782417041000,-630.96743494,0.00049315,120]
[426460437,1782417041000,-500.0,0.00049315,120]
[426460443,1782417041000,-500.0,0.00049315,90]
[426460445,1782417041000,-182.72,0.00049315,120]
[426460456,1782417041000,-313.76,0.00049315,120]
[426460439,1782417041000,-500.0,0.00049315,120]
[426460441,1782417041000,-500.0,0.00049315,120]
[426460455,1782417041000,-151.0,0.00049315,120]
[426460447,1782417041000,-500.0,0.00049315,120]
[426460449,1782417041000,-500.0,0.00049315,120]
[426460451,1782417041000,-500.0,0.00049315,120]
[426460452,1782417041000,-500.0,0.00049315,120]
[426460453,1782417041000,-151.0,0.00049315,120]
[426460337,1782417041000,-500.0,0.00049315,120]
[426460401,1782417041000,-500.0,0.00049315,120]
[426460399,1782417041000,-500.0,0.00049315,120]
[426460280,1782417041000,-500.0,0.00049315,120]
[426460339,1782417041000,-271.138513,0.00049315,120]
[426460403,1782417041000,-500.0,0.00049315,120]
[426460346,1782417041000,-500.0,0.00049315,120]
[426460344,1782417041000,-500.0,0.00049315,120]
[426460341,1782417041000,-500.0,0.00049315,120]
[426460348,1782417041000,-646.4,0.00049315,120]
[426460357,1782417041000,-500.0,0.00049315,120]
[426460355,1782417041000,-500.0,0.00049315,120]
[426460352,1782417041000,-500.0,0.00049315,120]
[426460350,1782417041000,-500.0,0.00049315,120]
[426460359,1782417041000,-500.0,0.00049315,120]
[426460362,1782417041000,-500.0,0.00049315,120]
[426460360,1782417041000,-500.0,0.00049315,120]
[426460364,1782417041000,-500.0,0.00049315,120]
[426460369,1782417041000,-500.0,0.00049315,120]
[426460377,1782417041000,-500.0,0.00049315,120]
[426460343,1782417041000,-500.0,0.00049315,120]
[426460366,1782417041000,-500.0,0.00049315,120]
[426460368,1782417041000,-352.72,0.00049315,11]
[426460397,1782417041000,-500.0,0.00049315,120]
[426460389,1782417041000,-500.0,0.00049315,120]
[426460387,1782417041000,-500.0,0.00049315,120]
[426460391,1782417041000,-500.0,0.00049315,120]
[426460393,1782417041000,-500.0,0.00049315,120]
[426460395,1782417041000,-500.0,0.00049315,120]
[426460379,1782417041000,-410.37684992,0.00049315,120]
[426460375,1782417041000,-500.0,0.00049315,120]
[426460381,1782417041000,-340.63,0.00049315,120]
[426460371,1782417041000,-500.0,0.00049315,90]
[426460373,1782417041000,-500.0,0.00049315,120]
[426460383,1782417041000,-500.0,0.00049315,120]
[426460385,1782417041000,-500.0,0.00049315,120]
[426460501,1782417042000,-244.084932,0.0004943,120]
[426460502,1782417042000,-329.515693,0.0004943,28]
[426460499,1782417042000,-151.0,0.0004943,120]
[426460503,1782417042000,-329.515693,0.0004943,28]
[426460510,1782417042000,-181.373066,0.0004943,120]
[426460494,1782417042000,-80922.2781708,0.0004943,120]
[426460488,1782417042000,-151.0,0.00049315,120]
[426460498,1782417042000,-151.0,0.0004943,120]
[426460490,1782417042000,-735.64,0.00049429,2]
[426460497,1782417042000,-151.0,0.0004943,120]
[426460505,1782417042000,-329.515693,0.0004943,28]
[426460491,1782417042000,-735.64,0.00049429,2]
[426460500,1782417042000,-151.0,0.0004943,120]
[426460504,1782417042000,-329.515693,0.0004943,28]
[426460512,1782417042000,-181.373066,0.0004943,120]
[426460508,1782417042000,-151.0,0.0004943,120]
[426460506,1782417042000,-151.0,0.0004943,120]
[426460511,1782417042000,-181.373066,0.0004943,120]
[426460513,1782417042000,-221.30373985,0.00049682,2]
[426460514,1782417042000,-151.0,0.000497,27]
[426460518,1782417042000,-735.64,0.00049999,2]
[426460523,1782417042000,-624.0,0.0005,120]
[426460522,1782417042000,-735.84,0.00049999,2]
[426460520,1782417042000,-735.64,0.00049999,2]
[426460516,1782417042000,-151.0,0.000498,29]
[426460524,1782417042000,-483.17,0.0005,60]
[426460515,1782417042000,-151.0,0.000497,25]
[426460492,1782417042000,-735.64,0.00049429,2]
[426460509,1782417042000,-181.373066,0.0004943,120]
[426460495,1782417042000,-151.0,0.0004943,120]
[426460485,1782417042000,-3000.0,0.00049315,120]
[426460493,1782417042000,-735.64,0.00049429,2]
[426460461,1782417042000,-500.0,0.00049315,120]
[426460459,1782417042000,-500.0,0.00049315,120]
[426460457,1782417042000,-500.0,0.00049315,120]
[426460464,1782417042000,-151.0,0.00049315,120]
[426460462,1782417042000,-500.0,0.00049315,120]
[426460472,1782417042000,-151.0,0.00049315,120]
[426460466,1782417042000,-260.241456,0.00049315,120]
[426460465,1782417042000,-151.0,0.00049315,120]
[426460467,1782417042000,-1200.0,0.00049315,2]
[426460468,1782417042000,-151.0,0.00049315,120]
[426460471,1782417042000,-151.0,0.00049315,120]
[426460473,1782417042000,-151.0,0.00049315,120]
[426460469,1782417042000,-151.0,0.00049315,120]
[426460470,1782417042000,-151.0,0.00049315,120]
[426460475,1782417042000,-280.867131,0.00049315,120]
[426460517,1782417042000,-151.0,0.000499,23]
[426460486,1782417042000,-1000.0,0.00049315,2]
[426460476,1782417042000,-151.0,0.00049315,120]
[426460479,1782417042000,-1000.0,0.00049315,2]
[426460477,1782417042000,-524.16,0.00049315,120]
[426460478,1782417042000,-1000.0,0.00049315,2]
[426460483,1782417042000,-181.373066,0.00049315,120]
[426460474,1782417042000,-151.0,0.00049315,120]
[426460481,1782417042000,-181.373066,0.00049315,120]
[426460484,1782417042000,-181.373066,0.00049315,120]
[426460480,1782417042000,-1000.0,0.00049315,2]
[426460482,1782417042000,-181.373066,0.00049315,120]
[426460487,1782417042000,-304.80876844,0.00049315,120]
[426460489,1782417042000,-1000.0,0.00049315,120]
[426460496,1782417042000,-151.0,0.0004943,120]
[426460519,1782417042000,-735.64,0.00049999,2]
[426460507,1782417042000,-151.0,0.0004943,120]
[426460526,1782417042000,-38399.99999953,0.0005,120]
[426460555,1782417042000,-329.515693,0.0005101,28]
[426460556,1782417042000,-329.515693,0.0005101,28]
[426460563,1782417042000,-5173.731645,0.00051013,120]
[426460559,1782417042000,-151.0,0.0005101,120]
[426460562,1782417042000,-394.3245,0.00051013,120]
[426460566,1782417042000,-289.889708,0.00051013,21]
[426460578,1782417042000,-487.0,0.0005103,120]
[426460572,1782417042000,-313.647692,0.00051013,21]
[426460574,1782417042000,-3000.0,0.0005102,85]
[426460569,1782417042000,-313.647692,0.00051013,21]
[426460579,1782417042000,-487.0,0.0005103,120]
[426460570,1782417042000,-1650.221669,0.00051013,120]
[426460576,1782417042000,-487.0,0.0005103,120]
[426460568,1782417042000,-197.16225,0.00051013,21]
[426460567,1782417042000,-197.16225,0.00051013,120]
[426460577,1782417042000,-487.0,0.0005103,120]
[426460575,1782417042000,-3000.0,0.0005103,85]
[426460571,1782417042000,-215.246304,0.00051013,21]
[426460573,1782417042000,-288.924462,0.00051013,21]
[426460581,1782417042000,-903.74,0.0005103,120]
[426460580,1782417042000,-487.0,0.0005103,120]
[426460583,1782417042000,-3000.0,0.0005105,85]
[426460582,1782417042000,-3000.0,0.0005104,85]
[426460584,1782417042000,-3000.0,0.0005106,85]
[426460586,1782417042000,-217.0,0.0005119,30]
[426460587,1782417042000,-318.35627333,0.00051853,2]
[426460521,1782417042000,-735.64,0.00049999,2]
[426460588,1782417042000,-4238.58133486,0.000519,120]
[426460589,1782417042000,-500.0,0.00052054,120]
[426460557,1782417042000,-329.515693,0.0005101,28]
[426460561,1782417042000,-169.688042,0.00051013,21]
[426460585,1782417042000,-5618.483905,0.0005107,85]
[426460560,1782417042000,-151.0,0.0005101,120]
[426460558,1782417042000,-151.0,0.0005101,120]
[426460536,1782417042000,-151.0,0.0005,120]
[426460527,1782417042000,-542.49160576,0.0005,10]
[426460531,1782417042000,-8200.0,0.0005,120]
[426460525,1782417042000,-10268.04347307,0.0005,120]
[426460530,1782417042000,-299.4895297,0.0005,2]
[426460528,1782417042000,-1730.38366703,0.0005,30]
[426460535,1782417042000,-151.0,0.0005,120]
[426460534,1782417042000,-151.0,0.0005,120]
[426460529,1782417042000,-561.89432578,0.0005,120]
[426460533,1782417042000,-151.0,0.0005,120]
[426460532,1782417042000,-168.0,0.0005,120]
[426460538,1782417042000,-157.8376493,0.00050042,36]
[426460541,1782417042000,-2213.0,0.000501,120]
[426460537,1782417042000,-300.0,0.0005,2]
[426460546,1782417042000,-181.373066,0.00050864,120]
[426460564,1782417042000,-160.0,0.00051013,21]
[426460553,1782417042000,-151.0,0.0005101,120]
[426460565,1782417042000,-224.944854,0.00051013,21]
[426460554,1782417042000,-329.515693,0.0005101,28]
[426460552,1782417042000,-3000.0,0.0005101,85]
[426460542,1782417042000,-445.0,0.000501,120]
[426460543,1782417042000,-1695.9855884,0.00050864,6]
[426460550,1782417042000,-247.0,0.00050959,120]
[426460545,1782417042000,-181.373066,0.00050864,120]
[426460547,1782417042000,-181.373066,0.00050864,120]
[426460539,1782417042000,-179.9820018,0.00050096,41]
[426460544,1782417042000,-181.373066,0.00050864,120]
[426460549,1782417042000,-151.0,0.000509,24]
[426460551,1782417042000,-3000.0,0.00051,85]
[426460626,1782417043000,-500.0,0.00052054,120]
[426460630,1782417043000,-535.89,0.00052054,120]
[426460632,1782417043000,-500.0,0.00052054,120]
[426460627,1782417043000,-231.48164621,0.00052054,14]
[426460631,1782417043000,-500.0,0.00052054,120]
[426460621,1782417043000,-500.0,0.00052054,120]
[426460625,1782417043000,-500.0,0.00052054,120]
[426460628,1782417043000,-500.0,0.00052054,90]
[426460618,1782417043000,-500.0,0.00052054,120]
[426460622,1782417043000,-500.0,0.00052054,120]
[426460623,1782417043000,-500.0,0.00052054,120]
[426460629,1782417043000,-500.0,0.00052054,120]
[426460637,1782417043000,-500.0,0.00052054,120]
[426460653,1782417043000,-500.0,0.00052054,120]
[426460635,1782417043000,-500.0,0.00052054,90]
[426460634,1782417043000,-500.0,0.00052054,120]
[426460636,1782417043000,-500.0,0.00052054,120]
[426460650,1782417043000,-500.0,0.00052054,120]
[426460639,1782417043000,-500.0,0.00052054,120]
[426460649,1782417043000,-500.0,0.00052054,90]
[426460641,1782417043000,-542.65,0.00052054,120]
[426460648,1782417043000,-500.0,0.00052054,120]
[426460645,1782417043000,-500.0,0.00052054,120]
[426460651,1782417043000,-500.0,0.00052054,120]
[426460654,1782417043000,-500.0,0.00052054,120]
[426460617,1782417043000,-500.0,0.00052054,60]
[426460643,1782417043000,-500.0,0.00052054,14]
[426460633,1782417043000,-500.0,0.00052054,11]
[426460620,1782417043000,-558.95,0.00052054,120]
[426460602,1782417043000,-500.0,0.00052054,120]
[426460616,1782417043000,-500.0,0.00052054,120]
[426460647,1782417043000,-500.0,0.00052054,120]
[426460591,1782417043000,-500.0,0.00052054,120]
[426460592,1782417043000,-500.0,0.00052054,120]
[426460590,1782417043000,-500.0,0.00052054,120]
[426460593,1782417043000,-500.0,0.00052054,120]
[426460594,1782417043000,-500.0,0.00052054,120]
[426460596,1782417043000,-500.0,0.00052054,120]
[426460598,1782417043000,-500.0,0.00052054,120]
[426460597,1782417043000,-500.0,0.00052054,120]
[426460595,1782417043000,-500.0,0.00052054,120]
[426460599,1782417043000,-525.75847193,0.00052054,120]
[426460600,1782417043000,-500.0,0.00052054,120]
[426460604,1782417043000,-500.0,0.00052054,120]
[426460607,1782417043000,-500.0,0.00052054,120]
[426460606,1782417043000,-500.0,0.00052054,120]
[426460601,1782417043000,-250.0011,0.00052054,120]
[426460603,1782417043000,-500.0,0.00052054,120]
[426460605,1782417043000,-151.71,0.00052054,120]
[426460611,1782417043000,-500.0,0.00052054,120]
[426460610,1782417043000,-500.0,0.00052054,120]
[426460608,1782417043000,-500.0,0.00052054,120]
[426460609,1782417043000,-500.0,0.00052054,120]
[426460612,1782417043000,-500.0,0.00052054,120]
[426460624,1782417043000,-500.0,0.00052054,120]
[426460614,1782417043000,-500.0,0.00052054,120]
[426460613,1782417043000,-500.0,0.00052054,120]
[426460615,1782417043000,-500.0,0.00052054,120]
[426460619,1782417043000,-509.21432276,0.00052054,120]
[426460646,1782417043000,-500.0,0.00052054,120]
[426460652,1782417043000,-500.0,0.00052054,120]
[426460657,1782417043000,-500.0,0.00052054,90]
[426460685,1782417043000,-500.0,0.00052054,120]
[426460693,1782417043000,-241.2,0.00052054,120]
[426460694,1782417043000,-810.65,0.00052054,120]
[426460692,1782417043000,-349.03,0.00052054,120]
[426460690,1782417043000,-500.0,0.00052054,120]
[426460695,1782417043000,-500.0,0.00052054,120]